[Event "AIIZIUCWT 2024"]
[Site "Rajkot"]
[Date "2024.01.24"]
[Round "3.1"]
[White "Arushi Kotwal"]
[Black "Ghosh Samriddhaa"]
[Result "0-1"]
[ECO "A06"]
[WhiteElo "1639"]
[BlackElo "1872"]
[Annotator "NA RC"]
[PlyCount "100"]
[EventDate "2024.01.22"]
[EventType "team-tourn"]
[EventCountry "IND"]
[SourceTitle "playchess.com"]
[Source "ChessBase"]
[SourceQuality "1"]
[TimeControl "3600+30"]

{[%evp 35,100,-52,-47,-43,-27,-47,-41,-59,0,-38,-17,-28,-31,-98,-87,-131,-114,-103,-112,-201,0,-161,-39,-28,-36,-53,37,-51,-49,-33,-46,32767,-13,-25,-51,-42,-30,-51,-6,-328,-251,-288,-272,-331,-387,-398,-417,-429,-399,-464,-435,-420,-509,-614,-545,32767,32767,32767,32767,32767,32767,32767,-29978,-29976,32767,32767,-29974]} 1. Nf3 {[%emt 0:00:07]} d5 {[%emt 0:00:21]} 2. b3 {[%emt 0:00:10]} Nf6 {[%emt 0:02:13]} 3. e3 {[%emt 0:00:59]} c5 {[%emt 0:01:43]} 4. Bb2 {[%emt 0:00:08]} Nc6 {[%emt 0:02:06]} 5. Bb5 {[%emt 0:04:56]} e6 {[%emt 0:11:20]} 6. O-O {[%emt 0:01:18]} a6 {[%emt 0:02:45] A06: Réti Opening: 1 Nf3 d5.} 7. Bxc6+ {[%emt 0:01:16]} bxc6 {[%emt 0:00:19]} 8. c4 {[%emt 0:02:25]} Bd6 {[%emt 0:01:48]} 9. Qc2 {[%emt 0:03:21]} Qc7 {[%emt 0:06:01]} 10. d4 {[%emt 0:02:29]} cxd4 {[%emt 0:06:26]} 11. exd4 {[%emt 0:00:34]} dxc4 {[%emt 0:03:48]} 12. Qxc4 {[%emt 0:02:00]} Bb7 {[%emt 0:03:14]} 13. Nbd2 {[%emt 0:01:28]} O-O {[%emt 0:01:50]} 14. Rac1 {[%emt 0:05:10]} a5 {[%emt 0:02:36]} 15. Rfe1 {[%emt 0:01:59]} Bf4 {[%emt 0:01:10]} 16. Red1 {[%emt 0:06:03]} Nd5 {[%emt 0:02:00]} 17. Ne5 {[%emt 0:02:07]} Rfc8 {[%emt 0:08:06]} 18. Qe2 {[%emt 0:13:00]} f6 {[%emt 0:04:25]} 19. Nef3 {[%emt 0:02:03]} Re8 {[%emt 0:00:24]} 20. a3 {[%emt 0:05:15]} Ba6 {[%emt 0:01:55]} 21. Qe4 {[%emt 0:00:50]} Rad8 {[%emt 0:02:43]} (21... a4 $15 {verdient Beachtung.}) 22. Rc2 {[%emt 0:01:49]} f5 {[%emt 0:01:41]} 23. Qe1 {[%emt 0:00:17]} Bd3 {[%emt 0:00:14]} 24. Rc5 {[%emt 0:01:02]} (24. Rcc1 $1 $11 {keeps the balance.}) 24... Bd6 {[%emt 0:00:15]} 25. Rcc1 {[%emt 0:00:33]} Nf4 {[%emt 0:00:06]} 26. Ra1 {[%emt 0:03:58]} Be2 {[%emt 0:01:28]} 27. Rdb1 {[%emt 0:00:26]} (27. g3 $17 Bxd1 28. Qxd1) 27... Bd3 $2 {[%emt 0:01:05]} (27... Qf7 $19 28. Rc1 Qb7) 28. Rd1 $1 {[%emt 0:00:24] [#]} Bc2 {[%emt 0:01:21]} (28... Qb7 $1 $19 29. g3 Ne2+ 30. Kg2 Qb5) 29. Rdc1 $1 {[%emt 0:00:18]} Nd3 {[%emt 0:00:11]} 30. Qe2 {[%emt 0:00:52]} Nxc1 {[%emt 0:00:02]} 31. Rxc1 {[%emt 0:00:11] [#]} Be4 $1 {[%emt 0:00:07]} 32. Nxe4 {[%emt 0:00:05]} fxe4 {[%emt 0:00:01]} 33. Qxe4 {[%emt 0:00:10]} Rc8 {[%emt 0:00:34]} 34. Ng5 {[%emt 0:01:56]} g6 {[%emt 0:00:05]} 35. Re1 {[%emt 0:00:35]} Bxh2+ {[%emt 0:01:42]} 36. Kh1 {[%emt 0:00:15]} Qf4 {[%emt 0:00:31]} (36... Bf4 $5 37. Nxe6 Qd7 38. Qxf4 Rxe6 39. Rxe6 Qxe6 $15) 37. Nxe6 $2 {[%emt 0:02:50]} (37. Bc1 $1 $11 Qxe4 38. Nxe4) 37... Qxe4 {[%emt 0:01:21]} 38. Rxe4 {[%emt 0:00:07]} Bd6 {[%emt 0:00:26]} 39. Ng5 {[%emt 0:01:02]} h6 {[%emt 0:00:30]} 40. Rxe8+ {[%emt 0:02:00]} Rxe8 {[%emt 0:00:02]} 41. Nf3 {[%emt 0:00:12]} Re2 {[%emt 0:00:41]} 42. Bc3 {[%emt 0:00:23]} Rxf2 {[%emt 0:00:20]} (42... Bxa3 43. Bxa5 Rxf2 44. Kg1) 43. Kg1 {[%emt 0:00:55]} Ra2 {[%emt 0:00:27]} 44. a4 {[%emt 0:00:59]} Bg3 {[%emt 0:01:00]} 45. Kf1 {[%emt 0:01:59]} Rf2+ {[%emt 0:00:08]} 46. Kg1 {[%emt 0:00:06]} Rc2 {[%emt 0:00:12]} 47. Bd2 {[%emt 0:00:19]} g5 {[%emt 0:00:33]} 48. Be1 {[%emt 0:02:30]} Rc1 {[%emt 0:00:47]} 49. Kf1 {[%emt 0:00:05]} g4 {[%emt 0:00:03]} 50. Ke2 {[%emt 0:00:27]} gxf3+ {[%emt 0:00:04]} 0-1

[Event "AIIZIUCWT 2024"]
[Site "Rajkot"]
[Date "2024.01.24"]
[Round "3.2"]
[White "Chitlange Sakshi"]
[Black "Anjitha Krishnakumar"]
[Result "1-0"]
[ECO "E01"]
[WhiteElo "2210"]
[BlackElo "1447"]
[Annotator "TA"]
[PlyCount "42"]
[EventDate "2024.01.22"]
[EventType "team-tourn"]
[EventCountry "IND"]
[SourceTitle "playchess.com"]
[Source "ChessBase"]
[SourceQuality "1"]
[TimeControl "3600+30"]

{[%evp 20,42,52,62,84,80,91,59,94,95,87,91,83,78,85,95,75,67,65,72,85,84,115,112,698]} 1. d4 {[%emt 0:00:02]} d5 {[%emt 0:00:15]} 2. c4 {[%emt 0:00:18]} e6 {[%emt 0:00:20]} 3. Nf3 {[%emt 0:00:04]} Nf6 {[%emt 0:01:03]} 4. g3 {[%emt 0:00:04]} c6 {[%emt 0:00:54]} 5. Qc2 {[%emt 0:00:39]} Bd6 {[%emt 0:01:15]} 6. Bg2 {[%emt 0:00:06]} Nbd7 {[%emt 0:01:49]} 7. O-O {[%emt 0:00:48]} O-O {[%emt 0:01:23]} 8. Nbd2 {[%emt 0:01:17]} h6 {[%emt 0:06:17]} 9. e4 {[%emt 0:00:37]} dxe4 {[%emt 0:00:20]} 10. Nxe4 {[%emt 0:00:02]} Nxe4 {[%emt 0:00:13]} 11. Qxe4 {[%emt 0:00:02]} Nf6 {[%emt 0:00:45]} 12. Qe2 {[%emt 0:00:31]} c5 {[%emt 0:03:43]} 13. Rd1 {[%emt 0:05:29]} Qb6 {[%emt 0:03:49] White is slightly better.} 14. Be3 {[%emt 0:06:11]} Bd7 {[%emt 0:09:32]} 15. Rab1 {[%emt 0:04:13][%cal Ob2b4] Black must now prevent b4!} a5 {[%emt 0:02:02]} 16. Ne5 {[%emt 0:04:02] [#] aiming for dxc5.} Bc6 {[%emt 0:03:49]} 17. Nxc6 {[%emt 0:06:21]} bxc6 {[%emt 0:00:19]} 18. Qf3 {[%emt 0:01:11]} Rac8 {[%emt 0:06:56]} 19. Rd3 {[%emt 0:07:11]} Kh7 {[%emt 0:20:49] White is better.} 20. b3 {[%emt 0:03:06]} Rfe8 {[%emt 0:03:48]} 21. Rbd1 {[%emt 0:07:04]} Ng8 $2 {[%emt 0:01:39][%mdl 8192] Weighted Error Value: White=0.04 (flawless) /Black=0.12 (very precise) .  Loses game:     	---       	Black=1      Inaccurate:     	White=1     	Black=2      OK:         	White=4     	Black=2      Best:        	---       	Black=1} (21... Be7 $16 22. R3d2 Qb4) 1-0

[Event "AIIZIUCWT 2024"]
[Site "Rajkot"]
[Date "2024.01.24"]
[Round "3.3"]
[White "Salonika, Saina"]
[Black "Arpita, Mukherjee"]
[Result "1/2-1/2"]
[ECO "B56"]
[WhiteElo "2113"]
[BlackElo "2186"]
[Annotator "TA"]
[PlyCount "47"]
[EventDate "2024.01.22"]
[EventType "team-tourn"]
[EventCountry "IND"]
[SourceTitle "playchess.com"]
[Source "ChessBase"]
[SourceQuality "1"]
[TimeControl "3600+30"]

{[%evp 10,47,35,16,22,0,6,0,21,5,22,18,53,67,54,0,-8,-43,-35,-37,-19,-14,-20,-27,-33,-45,-18,-31,-16,-18,-19,-41,-31,-60,-34,-50,-35,-84,-85,-111]} 1. e4 {[%emt 0:00:05]} c5 {[%emt 0:00:07]} 2. Nf3 {[%emt 0:00:02]} d6 {[%emt 0:00:08]} 3. d4 {[%emt 0:00:04]} cxd4 {[%emt 0:00:05]} 4. Nxd4 {[%emt 0:00:03]} Nf6 {[%emt 0:00:10]} 5. Nc3 {[%emt 0:00:04]} Nc6 {[%emt 0:00:11]} 6. Nb3 {[%emt 0:00:34]} g6 {[%emt 0:00:41]} 7. f3 {[%emt 0:02:27]} Bg7 {[%emt 0:00:08]} 8. Be3 {[%emt 0:00:17]} a6 {[%emt 0:00:20] The position is equal.} 9. Qd2 {[%emt 0:01:03]} b5 {[%emt 0:00:50]} 10. Bh6 {[%emt 0:04:17]} O-O {[%emt 0:12:16]} 11. Bxg7 {[%emt 0:01:48]} Kxg7 {[%emt 0:00:05]} 12. a4 {[%emt 0:01:58]} (12. O-O-O $14) 12... Be6 $11 {[%emt 0:18:57]} 13. Nd4 {[%emt 0:12:22]} Nxd4 {[%emt 0:01:16]} 14. Qxd4 {[%emt 0:00:05]} Qc7 {[%emt 0:00:32]} (14... b4 $5 15. Nd5 (15. Qxb4 Rb8 $11) 15... Bxd5 16. exd5 Qc7 $11) 15. Bd3 {[%emt 0:03:46] [#]} b4 $1 {[%emt 0:04:07]} 16. Ne2 {[%emt 0:03:04]} (16. Qxb4 Rfb8) 16... a5 {[%emt 0:02:47]} 17. g4 {[%emt 0:03:05] Threatens to win with g5.} Qa7 {[%emt 0:04:21]} 18. h3 {[%emt 0:11:57]} (18. Bb5 {is more complex.} Rfc8 19. O-O-O Qc7 20. Rd2) 18... Qxd4 {[%emt 0:01:13]} 19. Nxd4 {[%emt 0:00:07]} Rfc8 {[%emt 0:00:04]} 20. f4 {[%emt 0:03:55]} Bc4 {[%emt 0:00:38]} 21. Kd2 {[%emt 0:00:47]} Rc5 {[%emt 0:03:58]} 22. f5 {[%emt 0:05:15]} Nd7 {[%emt 0:00:51]} 23. Nf3 {[%emt 0:06:29]} (23. b3 $15 Bxd3 24. cxd3) 23... Rac8 $17 {[%emt 0:00:22] ...Bxd3 would now be deadly.} 24. Rhc1 {[%emt 0:00:26] Weighted Error Value: White=0.19 (very precise) /Black=0.12 (very precise) .  Mistake:       	White=2     	---        Inaccurate:     	White=3     	Black=3      OK:         	White=4     	Black=7} 1/2-1/2

[Event "AIIZIUCWT 2024"]
[Site "Rajkot"]
[Date "2024.01.24"]
[Round "3.4"]
[White "Chandreyee, Hajra"]
[Black "Tanishka Kotia"]
[Result "1/2-1/2"]
[ECO "B01"]
[WhiteElo "1854"]
[BlackElo "1787"]
[Annotator "NA COMBH RC"]
[PlyCount "81"]
[EventDate "2024.01.22"]
[EventType "team-tourn"]
[EventCountry "IND"]
[SourceTitle "playchess.com"]
[Source "ChessBase"]
[SourceQuality "1"]
[TimeControl "3600+30"]

{[%evp 43,81,0,0,-18,-23,-16,0,0,8,0,0,0,5,3,16,0,136,0,0,0,0,0,407,473,386,502,520,493,562,20,0,22,0,0,0,0,14,0,0,0]} 1. e4 {[%emt 0:00:11]} d5 {[%emt 0:00:09]} 2. exd5 {[%emt 0:00:16]} Nf6 {[%emt 0:00:08]} 3. Bb5+ {[%emt 0:05:06]} Bd7 {[%emt 0:00:27]} 4. Be2 {[%emt 0:02:13]} Nxd5 {[%emt 0:00:46]} 5. d4 {[%emt 0:00:05]} e6 {[%emt 0:03:14]} 6. c4 {[%emt 0:01:09] B01: Scandinavian Defence.} Bb4+ {[%emt 0:06:05]} 7. Bd2 {[%emt 0:00:18]} Bxd2+ {[%emt 0:00:08]} 8. Qxd2 {[%emt 0:00:22]} Nb6 {[%emt 0:05:38]} 9. Nf3 {[%emt 0:00:17]} Bc6 {[%emt 0:01:17]} 10. b3 {[%emt 0:08:50]} O-O {[%emt 0:06:10]} 11. O-O {[%emt 0:00:32]} Qf6 {[%emt 0:01:46]} 12. Nc3 {[%emt 0:02:26]} Rd8 {[%emt 0:02:17]} 13. Qe3 {[%emt 0:01:02]} Bxf3 {[%emt 0:10:59]} 14. Bxf3 {[%emt 0:00:08]} Nc6 {[%emt 0:00:49]} 15. Bxc6 {[%emt 0:04:08]} bxc6 {[%emt 0:00:01]} 16. Rad1 {[%emt 0:01:25]} a5 {[%emt 0:02:24]} 17. a4 {[%emt 0:02:04]} Rab8 {[%emt 0:02:31]} 18. Ne4 {[%emt 0:03:56]} Qg6 {[%emt 0:01:52]} 19. f4 {[%emt 0:02:50]} Nd7 {[%emt 0:04:56]} 20. Rf3 {[%emt 0:01:36]} Nf6 {[%emt 0:01:48]} 21. Nc5 {[%emt 0:01:08]} Nd7 {[%emt 0:04:25]} 22. Rg3 {[%emt 0:08:57]} Qc2 {[%emt 0:01:22]} 23. Rc1 {[%emt 0:01:10]} Qb2 {[%emt 0:00:50]} 24. Nxd7 {[%emt 0:05:31]} Rxd7 {[%emt 0:00:08]} 25. Rd1 {[%emt 0:01:40]} g6 {[%emt 0:02:12]} 26. h4 {[%emt 0:02:23]} Rbd8 {[%emt 0:01:17]} 27. Rd2 {[%emt 0:04:55]} Qa1+ {[%emt 0:02:46]} 28. Kh2 {[%emt 0:00:06]} h5 {[%emt 0:03:56]} 29. Qe5 {[%emt 0:03:33]} Rxd4 {[%emt 0:00:02] [#]} (29... Qb1 $1 $11) 30. c5 {[%emt 0:03:30]} (30. Qf6 $1 $16 R8d6 31. Rdd3) 30... R8d5 {[%emt 0:00:43]} 31. Qf6 {[%emt 0:00:19]} e5 {[%emt 0:00:12]} 32. f5 {[%emt 0:01:23]} Rf4 $2 {[%emt 0:02:26] [#]} ({Und nicht} 32... Rxd2 33. fxg6) (32... Qf1 $11 {und Schwarz ist OK.} 33. Rxg6+ fxg6 34. Rxd4 Rxd4 (34... Qxf5 35. Qxf5 gxf5 36. Rxd5 $11) 35. Qxg6+ Kf8 36. Qf6+ Kg8 37. Qe6+ Kf8 38. Qf6+ Kg8 $11 39. Qg6+ Kf8 40. Qh6+ Kf7 41. Qe6+ Kf8 42. Qf6+) 33. Rxd5 $1 {[%emt 0:02:17]} ({Worse is} 33. Rxg6+ fxg6 34. Qxg6+ Kf8 35. Qf6+ Kg8 $11) 33... cxd5 {[%emt 0:00:02]} 34. Qd8+ {[%emt 0:00:13]} Kg7 {[%emt 0:00:42]} 35. fxg6 {[%emt 0:00:38]} fxg6 {[%emt 0:00:01]} 36. Qe7+ $2 {[%emt 0:00:59]} (36. Qxc7+ $18 Rf7 37. Qd6 (37. Qxa5 Rf1 $11)) 36... Rf7 {[%emt 0:00:42]} 37. Qe6 {[%emt 0:00:28]} Rf6 {[%emt 0:01:05]} 38. Qe7+ {[%emt 0:02:17]} Rf7 {[%emt 0:00:02]} 39. Qe6 {[%emt 0:00:37]} Rf6 {[%emt 0:00:09]} 40. Qe7+ {[%emt 0:01:11]} Rf7 $11 {[%emt 0:00:02] Check Result:0.00} 41. Qe6 {[%emt 0:01:14]} 1/2-1/2

[Event "AIIZIUCWT 2024"]
[Site "Rajkot"]
[Date "2024.01.24"]
[Round "3.5"]
[White "Krithigga K"]
[Black "Shet Pranita P"]
[Result "1-0"]
[ECO "A13"]
[WhiteElo "1966"]
[BlackElo "1333"]
[Annotator "TA"]
[PlyCount "59"]
[EventDate "2024.01.22"]
[EventType "team-tourn"]
[EventCountry "IND"]
[SourceTitle "playchess.com"]
[Source "ChessBase"]
[SourceQuality "1"]
[TimeControl "3600+30"]

{[%evp 9,59,5,54,43,59,58,59,66,58,63,100,93,99,67,444,432,560,507,507,498,483,477,476,468,416,388,1283,1056,970,551,1000,352,284,208,610,597,607,600,567,566,1745,978,1719,1708,1702,1687,1673,1625,1365,1337,1047,941]} 1. c4 {[%emt 0:00:02]} Nf6 {[%emt 0:00:06]} 2. g3 {[%emt 0:00:20]} e6 {[%emt 0:00:11]} 3. Bg2 {[%emt 0:00:09]} d5 {[%emt 0:00:33]} 4. Nf3 {[%emt 0:00:14]} Nbd7 {[%emt 0:00:28]} 5. O-O {[%emt 0:00:32]} c5 {[%emt 0:00:18]} (5... dxc4 $11 {should be considered.} 6. Qc2 c5) 6. cxd5 $14 {[%emt 0:00:12]} exd5 {[%emt 0:00:09]} 7. d4 {[%emt 0:00:08]} b6 {[%emt 0:02:04]} 8. Nc3 {[%emt 0:00:38][%cal Oe2e4] Black must now prevent e4! White is slightly better.} Bb7 {[%emt 0:01:45]} 9. Bg5 {[%emt 0:02:45]} h6 {[%emt 0:04:58]} 10. Bxf6 {[%emt 0:00:25]} Nxf6 {[%emt 0:00:03]} 11. Ne5 {[%emt 0:00:49] [#] aiming for Qa4+.} (11. Qa4+ {simplifies} Qd7 12. Qxd7+ Nxd7 13. Rfd1) 11... Qd6 $2 {[%emt 0:08:52][%mdl 8192]} ({Black should try} 11... Bd6 $14) 12. Qa4+ $18 {[%emt 0:02:25]} Nd7 {[%emt 0:00:32]} 13. Bh3 {[%emt 0:10:05]} Bc8 {[%emt 0:07:09]} 14. Nb5 {[%emt 0:08:53] Excellent horsemanship.} Qb8 {[%emt 0:00:33]} 15. Nxd7 {[%emt 0:02:10]} Bxd7 {[%emt 0:00:14]} 16. Bxd7+ {[%emt 0:00:05]} Kxd7 {[%emt 0:00:15][%cal Be8d7,Bd7e6,Be6f5,Bf5g6,Bg6h7][%mdl 32]} 17. dxc5 {[%emt 0:00:15]} (17. Nxa7+ Kd8 18. Nc6+ Kc7 $19) 17... bxc5 $2 {[%emt 0:06:13]} (17... Bxc5 18. Rad1 (18. Nxa7+ Ke7 $14) 18... Ke7 19. Rxd5 Kf8) 18. Rfd1 {[%emt 0:03:32]} (18. Nxa7+ Ke7 19. Nc6+ Kf6 $16) 18... Ke6 {[%emt 0:08:49]} 19. Qa6+ {[%emt 0:00:51]} Bd6 {[%emt 0:01:23]} 20. Qc6 {[%emt 0:01:46]} (20. Rxd5 Kxd5 21. Rd1+ Ke6 22. Nxd6 (22. Rxd6+ Ke7 $18)) 20... d4 {[%emt 0:03:34]} 21. e3 {[%emt 0:01:44][%cal Be2e3,Be3d4][%mdl 32]} a6 $2 {[%emt 0:07:11]} (21... Rc8 22. Qe4+ Kd7) 22. exd4 {[%emt 0:03:52] White is clearly winning.} Qxb5 {[%emt 0:10:03]} 23. Re1+ {[%emt 0:04:04]} Kf5 {[%emt 0:01:19]} 24. Qxd6 {[%emt 0:00:31] [#] Threatening mate with Re5+.} cxd4 {[%emt 0:00:12][%cal Bc5d4,Bd4d3][%mdl 32]} 25. Rac1 {[%emt 0:00:42] Rc7 would kill now.} Rac8 {[%emt 0:00:43]} 26. Qf4+ {[%emt 0:00:54]} Kg6 {[%emt 0:00:47]} 27. Rxc8 {[%emt 0:00:37]} ({Not} 27. Qxd4 Rhe8 28. Rcd1 Rxe1+ 29. Rxe1 Kh7 $16) 27... Rxc8 {[%emt 0:00:31]} 28. Qg4+ {[%emt 0:00:05]} (28. Qxd4 Kh7 29. b3 h5 $14) 28... Kh7 {[%emt 0:00:52]} 29. Qxc8 {[%emt 0:00:14]} d3 {[%emt 0:00:26]} 30. Qc1 {[%emt 0:00:17] Black got outplayed after the opening.   Weighted Error Value: White=0.55/Black=1.58.  Loses game:     	---       	Black=1      Mistake:       	---       	Black=2      Inaccurate:     	White=2     	Black=2      OK:         	White=4     	Black=4      Best:        	White=1     	Black=2} 1-0

[Event "AIIZIUCWT 2024"]
[Site "Rajkot"]
[Date "2024.01.24"]
[Round "3.6"]
[White "Ananya, Suresh"]
[Black "Sunyuktha C M N"]
[Result "1-0"]
[ECO "B23"]
[WhiteElo "1916"]
[BlackElo "2013"]
[Annotator "RC"]
[PlyCount "63"]
[EventDate "2024.01.22"]
[EventType "team-tourn"]
[EventCountry "IND"]
[SourceTitle "playchess.com"]
[Source "ChessBase"]
[SourceQuality "1"]
[TimeControl "3600+30"]

1. e4 {[%emt 0:00:02]} c5 {[%emt 0:00:12]} 2. Nc3 {[%emt 0:00:13]} a6 {[%emt 0:01:06]} 3. g3 {[%emt 0:00:19]} b5 {[%emt 0:00:39]} 4. Bg2 {[%emt 0:00:10]} Bb7 {[%emt 0:00:10]} 5. d3 {[%emt 0:00:29]} d6 {[%emt 0:02:07]} 6. Nh3 {[%emt 0:00:26]} g6 {[%emt 0:03:03]} 7. O-O {[%emt 0:00:45]} Bg7 {[%emt 0:00:19]} 8. f4 {[%emt 0:00:39]} Nc6 {[%emt 0:01:08]} 9. g4 {[%emt 0:08:24]} b4 {[%emt 0:06:59]} 10. Nd5 {[%emt 0:07:26]} Nf6 {[%emt 0:07:30]} 11. Ne3 {[%emt 0:00:33]} Nd7 {[%emt 0:03:06]} 12. Qe1 {[%emt 0:01:15]} a5 {[%emt 0:03:17]} 13. a4 {[%emt 0:05:10]} Nd4 {[%emt 0:04:02]} 14. Qd1 {[%emt 0:03:37]} Nb6 {[%emt 0:11:51]} 15. c3 {[%emt 0:09:32]} Nc6 {[%emt 0:01:11]} 16. Bd2 {[%emt 0:00:35]} Rc8 {[%emt 0:11:17]} 17. Qe2 {[%emt 0:04:15]} Nb8 {[%emt 0:02:45]} 18. f5 {[%emt 0:01:23]} O-O {[%emt 0:01:26]} 19. g5 {[%emt 0:00:28]} d5 {[%emt 0:06:10]} 20. Ng4 {[%emt 0:00:29]} dxe4 {[%emt 0:00:43]} 21. f6 {[%emt 0:00:50]} exd3 {[%emt 0:00:27]} 22. Qf2 {[%emt 0:00:28]} Bxg2 {[%emt 0:00:27]} 23. Qxg2 {[%emt 0:00:20]} Nc4 {[%emt 0:00:53]} 24. fxg7 {[%emt 0:00:15]} Kxg7 {[%emt 0:00:02]} 25. Bf4 {[%emt 0:01:12]} Nc6 {[%emt 0:00:42]} 26. b3 {[%emt 0:01:11]} Nd6 27. Rad1 {[%emt 0:03:45]} Nf5 {[%emt 0:01:37]} 28. Qe4 {[%emt 0:00:15]} Qb6 {[%emt 0:00:39]} 29. c4 {[%emt 0:00:56]} Rfd8 {[%emt 0:00:34]} 30. Ne3 {[%emt 0:04:57]} Ncd4 {[%emt 0:00:29]} 31. Be5+ {[%emt 0:01:03]} f6 {[%emt 0:00:15]} 32. Bxd4 {[%emt 0:00:23]} 1-0

[Event "AIIZIUCWT 2024"]
[Site "Rajkot"]
[Date "2024.01.24"]
[Round "3.7"]
[White "Poorna Sri M.K"]
[Black "Swathi Bhat"]
[Result "1-0"]
[ECO "B08"]
[WhiteElo "1812"]
[BlackElo "1387"]
[Annotator "NA RC"]
[PlyCount "67"]
[EventDate "2024.01.22"]
[EventType "team-tourn"]
[EventCountry "IND"]
[SourceTitle "playchess.com"]
[Source "ChessBase"]
[SourceQuality "1"]
[TimeControl "3600+30"]

{[%evp 36,67,355,272,275,130,420,429,445,458,498,426,391,383,728,32767,32767,0,509,444,462,356,527,590,32767,529,1310,429,1671,2046,1761,29964,32767,-275]} 1. e4 {[%emt 0:00:04]} d6 {[%emt 0:00:15]} 2. d4 {[%emt 0:00:11]} g6 {[%emt 0:00:06]} 3. Nf3 {[%emt 0:00:08]} Nf6 {[%emt 0:00:53]} 4. Nc3 {[%emt 0:00:08]} Bg7 {[%emt 0:00:08]} 5. Be2 {[%emt 0:00:57]} O-O {[%emt 0:00:14]} 6. O-O {[%emt 0:00:18]} e5 {[%emt 0:05:10] 6...Nc6 is a critical line.} 7. Bg5 {[%emt 0:04:33] B08: Pirc Defence: Classical System.} Nbd7 {[%emt 0:13:49]} 8. Qd2 {[%emt 0:07:13]} c6 {[%emt 0:02:07]} 9. Rad1 {[%emt 0:05:49]} Qc7 {[%emt 0:03:43]} 10. h3 {[%emt 0:03:38]} Kh8 $146 {[%emt 0:06:55]} ({Predecessor:} 10... Re8 11. d5 c5 12. Qe3 a6 13. a3 b5 14. Na2 Bb7 15. Nd2 c4 16. b3 cxb3 17. cxb3 {1-0 Corona Del Prado,D (1891)-Fuentes De Feria,H (1845) CUB Cup Ventana Sur 2018 (6.2)}) 11. a4 {[%emt 0:04:32]} Ng8 {[%emt 0:09:21]} 12. dxe5 {[%emt 0:03:10]} dxe5 {[%emt 0:01:15]} 13. Bc4 {[%emt 0:00:52]} h6 {[%emt 0:01:09]} 14. Be3 {[%emt 0:00:34]} Kh7 {[%emt 0:01:19]} 15. Kh1 {[%emt 0:05:35]} Ne7 {[%emt 0:02:00]} 16. Ne1 {[%emt 0:01:46]} f5 {[%emt 0:06:38]} 17. f4 {[%emt 0:02:08]} Qa5 {[%emt 0:03:51]} 18. Qd6 {[%emt 0:03:01]} Bf6 $2 {[%emt 0:04:38]} (18... Qd8 $16 {war einen Versuch wert.}) 19. Be6 {[%emt 0:09:05]} exf4 {[%emt 0:05:33] [#]} 20. Bxf4 {[%emt 0:09:37]} ({But not} 20. Rxf4 $6 Ne5 $16) ({Don't do} 20. Qxf4 $6 g5 21. Qd6 (21. Bxf5+ Qxf5 22. Qxf5+ Nxf5 $14) 21... Ne5 $16) (20. Bd4 $1 $18 {[%cal Rd4f6] and the rest is easy.} Ne5 21. Nf3) 20... Nb6 $2 {[%emt 0:00:17]} (20... Nc5 $16) 21. e5 {[%emt 0:01:33]} Bxe6 {[%emt 0:00:56]} 22. exf6 {[%emt 0:00:59]} ({Don't play} 22. Qxe6 Rae8 $18) 22... Ned5 {[%emt 0:00:40]} 23. Qxe6 {[%emt 0:01:17]} Rxf6 {[%emt 0:00:24]} 24. Qe5 {[%emt 0:02:47]} ({Finger weg von} 24. Rxd5 Nxd5 25. Qd7+ Kg8 26. Qxb7 (26. Bxh6 Rf7 $18) 26... Re8) 24... Nc4 $1 $11 {[%emt 0:00:27] und Schwarz steht sicher.} 25. Qd4 {[%emt 0:03:36]} (25. Rxd5 Nxe5) 25... Ncb6 {[%emt 0:00:36]} 26. Qe5 $11 {[%emt 0:00:48]} (26. Nxd5 $18 Nxd5 27. c4) 26... Raf8 $2 {[%emt 0:00:18]} 27. Nxd5 {[%emt 0:00:22]} Nxd5 {[%emt 0:00:04]} 28. c4 {[%emt 0:01:34]} Qa6 {[%emt 0:00:00]} 29. b3 {[%emt 0:00:12]} Nxf4 {[%emt 0:01:09]} 30. Rxf4 {[%emt 0:00:36]} Qb6 {[%emt 0:00:28]} 31. Rd3 {[%emt 0:01:47]} (31. Rd7+ $142 R6f7 32. a5 (32. Rxf7+ Rxf7 33. Rd4 Qc7 $18)) 31... Qb4 {[%emt 0:00:56]} (31... c5 $142 32. Rf2 R6f7) 32. Rfd4 {[%emt 0:00:34]} R6f7 {[%emt 0:00:38]} 33. Rd7 {[%emt 0:00:50]} a6 {[%emt 0:01:03] [#]} 34. R7d5 $4 {[%emt 0:06:21]} 1-0

[Event "AIIZIUCWT 2024"]
[Site "Rajkot"]
[Date "2024.01.24"]
[Round "3.8"]
[White "Amulya Shetty"]
[Black "Mohana Praba R B"]
[Result "0-1"]
[ECO "B43"]
[WhiteElo "1337"]
[BlackElo "1478"]
[Annotator "NA RC COMBH"]
[PlyCount "64"]
[EventDate "2024.01.22"]
[EventType "team-tourn"]
[EventCountry "IND"]
[SourceTitle "playchess.com"]
[Source "ChessBase"]
[SourceQuality "1"]
[TimeControl "3600+30"]

1. e4 {[%emt 0:00:05]} c5 {[%emt 0:00:07]} 2. Nf3 {[%emt 0:00:08]} e6 {[%emt 0:00:05]} 3. Nc3 {[%emt 0:00:17]} a6 {[%emt 0:00:05]} 4. d4 {[%emt 0:00:16]} cxd4 {[%emt 0:00:05]} 5. Nxd4 {[%emt 0:00:03]} Qc7 {[%emt 0:00:44]} 6. a3 {[%emt 0:01:33]} Nf6 {[%emt 0:03:21]} 7. Bd3 {[%emt 0:02:36]} Be7 {[%emt 0:03:48]} 8. O-O {[%emt 0:01:11]} Nc6 {[%emt 0:04:37]} 9. Be3 {[%emt 0:05:09]} b5 {[%emt 0:04:51]} 10. Nxc6 {[%emt 0:03:17]} dxc6 {[%emt 0:01:15]} 11. h3 {[%emt 0:09:14]} c5 {[%emt 0:05:20]} 12. f3 {[%emt 0:22:41]} Bb7 {[%emt 0:11:21]} 13. Qc1 {[%emt 0:04:05]} c4 {[%emt 0:09:28]} 14. Be2 {[%emt 0:00:54]} Nh5 {[%emt 0:03:10]} 15. Rd1 {[%emt 0:04:35]} Bd6 {[%emt 0:06:55]} 16. Bf2 {[%emt 0:09:20]} Bf4 {[%emt 0:05:25]} 17. Qb1 {[%emt 0:02:16]} O-O {[%emt 0:02:33]} 18. Rd4 {[%emt 0:01:16]} Rfd8 {[%emt 0:02:16]} 19. Rd1 {[%emt 0:00:21]} Be5 {[%emt 0:01:30]} 20. Na2 {[%emt 0:00:34]} Nf4 {[%emt 0:00:23]} 21. Re1 {[%emt 0:00:36]} Rd2 {[%emt 0:01:23]} 22. Kf1 {[%emt 0:00:25]} Rad8 {[%emt 0:00:23]} 23. Nc1 {[%emt 0:00:33]} R2d7 {[%emt 0:00:45]} 24. Ra2 {[%emt 0:00:31]} Ng6 {[%emt 0:00:20]} 25. Be3 {[%emt 0:00:30]} Bg3 {[%emt 0:00:13]} 26. Bf2 {[%emt 0:00:13]} Bxf2 {[%emt 0:00:11]} 27. Kxf2 {[%emt 0:00:02]} Qc5+ {[%emt 0:00:14]} 28. Kf1 {[%emt 0:00:15]} Nf4 {[%emt 0:00:09]} 29. b3 {[%emt 0:01:31]} Qg5 {[%emt 0:00:31]} 30. g4 {[%emt 0:00:31]} cxb3 {[%emt 0:00:22]} 31. Qxb3 {[%emt 0:00:27]} Qh4 {[%emt 0:00:10]} 32. Kg1 {[%emt 0:00:34]} Qg3+ {[%emt 0:00:19]} 0-1